bitfinex/quotes_ETHUSD_20220113
["timestamp","ask_amount","ask_price","bid_price","bid_amount"]
[1642059157322,4.14377484,3347.3,3347.1,0.00284212]
[1642059157922,4.14377484,3347.3,3346.9,0.00397897]
[1642059158125,4.14377484,3347.3,3347.0,0.1195]
[1642059158522,4.14377484,3347.3,3347.1,0.00284212]
[1642059159027,4.14377484,3347.3,3347.0,0.00341054]
[1642059161365,2.83390221,3347.2,3347.0,0.00341054]
[1642059161572,4.14377484,3347.3,3347.0,0.00341054]
[1642059161967,2.83191027,3347.2,3346.9,0.00397897]
[1642059163373,0.1195,3347.1,3346.7,0.00511581]
[1642059163770,0.1195,3347.1,3346.6,0.00568424]
[1642059164218,0.74721,3347.0,3346.6,0.00568424]
[1642059164412,1.9954094,3346.8,3346.6,0.00568424]
[1642059164621,3.8195,3346.7,3346.5,3.624e-05]
[1642059164920,3.37505526,3346.6,3346.0,0.01]
[1642059165115,0.1195,3346.5,3346.0,0.01]
[1642059165317,0.1195,3346.5,3346.1,0.00284211]
[1642059165318,17.6395,3346.5,3346.1,0.00284211]
[1642059165515,0.3,3346.3,3346.1,0.00284211]
[1642059165715,0.1195,3346.2,3346.1,0.00284211]
[1642059165916,1.36549627,3346.2,3346.1,0.00284211]
[1642059166916,18.88549627,3346.2,3346.1,0.00284211]
[1642059167315,19.18549627,3346.2,3346.1,0.00284211]
[1642059167516,18.88549627,3346.2,3346.1,0.00284211]
[1642059168178,18.88549627,3346.2,3345.3,0.07234211]
[1642059168378,0.74735,3345.8,3345.2,0.1195]
[1642059168580,0.3,3345.7,3345.4,0.00397897]
[1642059168985,1.50154846,3345.5,3345.4,0.00397897]
[1642059169985,3.32583065,3345.5,3345.4,0.00397897]
[1642059170190,1.50154846,3345.5,3345.4,0.00397897]
[1642059172024,0.7474,3345.6,3345.4,0.00397897]
[1642059172619,0.7474,3345.6,3345.0,0.00625266]
[1642059172819,0.7474,3345.4,3345.1,0.1195]
[1642059173219,0.7474,3345.4,3345.2,0.00511582]
[1642059173821,0.7474,3345.4,3345.0,0.00625266]
[1642059174020,1.0474,3345.4,3345.1,0.1195]
[1642059174423,1.0474,3345.4,3345.2,0.00511582]
[1642059175282,0.3,3345.4,3345.2,0.00511582]
[1642059175473,2.25440112,3345.7,3345.2,0.00511582]
[1642059175672,0.3,3345.7,3345.2,0.00511582]
[1642059175873,1.29877498,3345.1,3345.0,0.00625266]
[1642059176073,1.29877498,3345.1,3345.0,0.12575266]
[1642059176272,1.29877498,3345.1,3345.0,0.00625266]
[1642059176476,1.29877498,3345.1,3345.0,0.12575266]
[1642059176674,1.29877498,3345.1,3345.0,0.00625266]
[1642059176871,1.29877498,3345.1,3345.0,0.12575266]
[1642059177074,1.29877498,3345.1,3344.8,0.00738951]
[1642059177281,1.29877498,3345.1,3345.0,0.00625266]
[1642059177474,1.29877498,3345.1,3344.8,0.12688951]
[1642059177673,1.29877498,3345.1,3345.0,0.00625266]
[1642059177873,1.29877498,3345.1,3344.9,0.00682109]
[1642059178073,1.29877498,3345.1,3344.8,0.00738951]
[1642059178074,4.13961904,3345.1,3344.8,0.00738951]
[1642059178274,1.29877498,3345.1,3344.8,0.00738951]
[1642059178473,4.16238518,3345.1,3344.8,0.00738951]
[1642059179121,3.46238518,3345.1,3344.8,0.00738951]
[1642059179725,0.7475,3344.9,3344.6,0.00852636]
[1642059182632,0.7475,3344.9,3344.5,0.00909478]
[1642059183266,2.85438715,3344.8,3344.5,0.00909478]
[1642059183465,0.74753,3344.7,3344.5,0.00909478]
[1642059184569,2.924724,3344.6,3344.5,0.00909478]
[1642059185372,3.044224,3344.6,3344.5,0.00909478]
[1642059185971,6.144224,3344.6,3344.5,0.00909478]
[1642059186373,3.044224,3344.6,3344.4,0.1195]
[1642059186820,1.18079851,3344.5,3344.4,0.1195]
[1642059187020,4.87803065,3344.5,3344.4,0.1195]
[1642059187224,7.43927725,3344.5,3344.4,0.1195]
[1642059187424,7.43927725,3344.5,3343.7,3.8381]
[1642059187632,0.74773,3344.2,3343.7,3.8381]
[1642059187834,3.37204685,3344.1,3343.8,0.00397896]
[1642059188026,3.49164685,3344.1,3343.8,0.00397896]
[1642059188224,3.49164685,3344.1,3343.3,0.15]
[1642059188225,0.1196,3344.1,3343.5,0.00568423]
[1642059188524,3.74867018,3344.3,3343.3,0.15]
[1642059188525,0.8673925,3344.2,3343.4,0.00625266]
[1642059188724,0.1196,3344.0,3343.4,0.00625266]
[1642059188926,1.25323379,3343.9,3343.4,0.00625266]
[1642059189132,0.74783,3343.7,3343.4,0.00625266]
[1642059190030,0.86742,3343.8,3343.4,0.00625266]
[1642059191177,3.72409524,3343.8,3343.4,0.00625266]
[1642059191373,0.74782,3343.8,3343.4,0.00625266]
[1642059191976,1.03072,3343.8,3343.4,0.00625266]
[1642059192379,0.74787,3343.7,3343.4,0.00625266]
[1642059194016,0.2652552,3343.5,3343.4,0.00625266]
[1642059196523,6.63138057,3343.5,3343.4,0.00625266]
[1642059196722,6.63138057,3343.5,3343.3,0.10625266]
[1642059196922,0.1196,3343.4,3343.3,0.10625266]
[1642059197123,3.18125033,3343.4,3343.3,0.10625266]
[1642059197323,4.41907288,3343.4,3343.3,0.10625266]
[1642059198574,1.35742255,3343.4,3343.3,0.10625266]
[1642059198775,3.0,3343.5,3343.3,0.10625266]
[1642059199878,4.2585643,3343.5,3343.3,0.10625266]
[1642059201080,0.3,3343.4,3343.3,0.10625266]
[1642059201828,0.14063619,3343.4,3343.3,0.10625266]
[1642059214091,1.106491,3343.3,3342.9,0.1196]
[1642059214290,1.106491,3343.3,3342.9,0.02058249]
[1642059214291,0.74781,3343.2,3342.9,0.02058249]
[1642059214590,0.74781,3343.2,3343.0,0.00227369]
[1642059214789,0.69781,3343.2,3343.0,30.00227369]
[1642059215192,0.69781,3343.2,3343.1,0.00170527]
[1642059217421,3.55693447,3343.2,3343.1,0.00170527]
[1642059217923,0.69781,3343.2,3343.1,0.00170527]
[1642059218127,3.51759039,3343.2,3343.1,0.00170527]
[1642059221277,3.63719039,3343.2,3343.1,0.00170527]
[1642059223081,3.93719039,3343.2,3343.1,0.00170527]
[1642059223483,3.64751765,3343.2,3343.1,0.00170527]
[1642059223682,0.69781,3343.2,3343.1,0.00170527]
[1642059224723,3.49940345,3343.2,3343.1,0.00170527]
[1642059225122,0.69781,3343.2,3343.1,0.00170527]
[1642059225524,3.53562322,3343.2,3343.1,0.00170527]
[1642059227024,0.69781,3343.2,3343.1,0.00170527]
[1642059227424,3.56921278,3343.2,3343.1,0.00170527]
[1642059227625,6.13765886,3343.2,3343.1,0.00170527]
[1642059228875,0.69781,3343.2,3343.0,30.0]
[1642059229080,3.05299532,3343.1,3343.0,21.51771384]
[1642059229286,2.93702,3343.2,3343.0,21.51771384]
[1642059229478,0.3,3343.1,3343.0,15.53375384]
[1642059230181,0.3,3343.1,3343.0,9.54971384]
[1642059230583,0.3,3343.1,3343.0,3.56572384]
[1642059231180,3.48828805,3343.1,3343.0,3.56572384]
[1642059231383,0.748,3342.9,3342.4,0.1196]
[1642059231620,1.18639491,3342.7,3342.4,0.1196]
[1642059231826,0.3,3342.6,3342.5,0.00341054]
[1642059232221,3.2516953,3342.6,3342.5,0.00341054]
[1642059234829,3.2516953,3342.6,3342.2,0.00511581]
[1642059235031,3.2516953,3342.6,3342.1,0.1196]
[1642059235032,0.74799,3342.5,3342.1,0.07471581]
[1642059235274,0.3,3342.4,3342.1,0.07471581]
[1642059235669,1.53533443,3342.2,3342.1,0.07471581]
[1642059236069,1.83533443,3342.2,3342.1,0.07471581]
[1642059237081,4.83533443,3342.2,3342.1,0.07471581]
[1642059238478,3.3,3342.2,3342.1,0.07471581]
[1642059239525,3.3,3342.2,3342.0,0.119706]
[1642059239742,4.65625899,3342.2,3342.0,0.119706]
[1642059241229,4.65625899,3342.2,3341.8,0.1196]
[1642059241627,4.65625899,3342.2,3341.9,0.00170527]
[1642059242427,5.40428029,3342.2,3341.9,0.00170527]
[1642059244379,0.74804,3342.1,3341.9,0.00170527]
[1642059244979,0.74804,3342.1,3341.8,0.00227369]
[1642059245381,0.7480795,3342.0,3341.8,0.00227369]
[1642059245580,1.0480795,3342.0,3341.8,0.00227369]
[1642059246380,0.3,3342.0,3341.8,0.00227369]
[1642059246623,1.04804,3342.1,3341.8,0.00227369]
[1642059247824,0.7480511,3342.0,3341.8,0.00227369]
[1642059250292,0.3,3342.1,3341.8,0.75021369]
[1642059250485,4.65625899,3342.2,3341.8,0.75021369]
[1642059252292,5.40421899,3342.2,3341.8,0.75021369]
[1642059252699,5.40421899,3342.2,3341.8,0.00227369]
[1642059253092,1.52449933,3341.8,3341.6,0.00341054]
[1642059253593,1.82449933,3341.8,3341.6,0.00341054]
[1642059254731,0.3,3341.8,3341.6,0.00341054]
[1642059258478,0.3,3341.8,3341.5,0.00397896]
[1642059258676,1.0111,3341.7,3341.5,0.00397896]
[1642059258879,0.3,3341.6,3341.5,0.00397896]
[1642059259082,1.55730781,3341.6,3341.4,0.00454739]
[1642059259284,2.30543611,3341.6,3341.4,0.00454739]
[1642059259984,1.50582574,3341.5,3341.2,0.00568423]
[1642059260183,1.50582574,3341.5,3341.1,0.00625266]
[1642059260389,2.25391574,3341.5,3341.1,0.00625266]
[1642059261386,2.25391574,3341.5,3341.2,0.74807]
[1642059261826,2.25391574,3341.5,3341.3,0.00511581]
[1642059264027,2.25391574,3341.5,3341.1,0.00625266]
[1642059264432,2.25391574,3341.5,3341.2,0.74806]
[1642059264730,2.25391574,3341.5,3341.3,0.00511581]
[1642059266781,2.25391574,3341.5,3341.1,1.00625266]
[1642059266983,2.25391574,3341.5,3341.2,0.75375423]
[1642059267384,2.25391574,3341.5,3341.3,0.00511581]
[1642059268585,3.74809,3341.5,3341.3,0.00511581]
[1642059269434,3.74809,3341.5,3341.2,0.74807]
[1642059269637,3.74809,3341.5,3341.3,0.1197]
[1642059269841,3.74809,3341.5,3341.3,1.61566]
[1642059275485,3.74809,3341.5,3341.3,1.49596]
[1642059276729,3.74809,3341.5,3341.2,1.74807]
[1642059276928,3.74809,3341.5,3341.2,0.74807]
[1642059282479,4.04809,3341.5,3341.2,0.74807]
[1642059288181,4.04809,3341.5,3341.3,0.426]
[1642059289588,4.04809,3341.5,3341.3,1.17395]
[1642059290990,4.04809,3341.5,3341.0,0.1197]
[1642059291190,4.04809,3341.5,3341.1,0.426]
[1642059291393,4.04809,3341.5,3341.1,0.42713685]
[1642059292429,4.04809,3341.5,3341.3,0.74795]
[1642059293031,4.04809,3341.5,3341.1,0.00113685]
[1642059294439,1.25442428,3341.2,3341.1,0.74915685]
[1642059294637,1.55442428,3341.2,3341.1,0.74915685]
[1642059296884,1.55442428,3341.2,3340.9,2.92213]
[1642059297088,1.33457362,3341.1,3340.9,2.92213]
[1642059297283,1.33457362,3341.1,3341.0,0.74804]
[1642059299237,1.33457362,3341.1,3340.9,2.92213]
[1642059299436,1.33457362,3341.1,3340.9,1.92213]
[1642059300034,1.33457362,3341.1,3341.0,0.74804]
[1642059300434,1.33457362,3341.1,3341.0,1.74804]
[1642059306733,2.66259858,3341.1,3341.0,1.74804]
[1642059307935,1.33457362,3341.1,3341.0,1.74804]
[1642059308140,0.3,3341.2,3341.0,1.74804]
[1642059309241,1.4496904,3341.1,3341.0,1.74804]
[1642059309442,2.94416113,3341.1,3341.0,1.74804]
[1642059311080,2.94416113,3341.1,3341.0,1.0]
[1642059311281,2.94416113,3341.1,3340.9,1.92213]
[1642059312888,2.94416113,3341.1,3340.9,1.49613]
[1642059313091,0.74814,3340.9,3340.5,1.426]
[1642059313288,1.04814,3340.9,3340.5,1.426]
[1642059313489,1.04814,3340.9,3340.6,0.00284211]
[1642059314027,1.04814,3340.9,3340.6,0.75098211]
[1642059314432,1.04814,3340.9,3340.7,1.92434369]
[1642059314832,1.04814,3340.9,3340.8,0.00170527]
[1642059315034,1.04814,3340.9,3340.8,0.42770527]
[1642059315633,2.38706382,3340.9,3340.8,0.42770527]
[1642059320496,2.38706382,3340.9,3340.8,1.42770527]
[1642059320692,2.38706382,3340.9,3340.8,0.42770527]
[1642059320895,2.38706382,3340.9,3340.8,1.42770527]
[1642059321097,2.38706382,3340.9,3340.8,0.42770527]
[1642059321294,2.38706382,3340.9,3340.8,1.42770527]
[1642059321932,2.38706382,3340.9,3340.8,0.42770527]
[1642059322133,2.38706382,3340.9,3340.8,1.42770527]
[1642059322335,2.38706382,3340.9,3340.8,0.42770527]
[1642059322534,2.38706382,3340.9,3340.8,1.42770527]
[1642059322732,2.38706382,3340.9,3340.8,0.42770527]
[1642059326081,2.38706382,3340.9,3340.8,0.00170527]
[1642059326481,2.38706382,3340.9,3340.7,0.00227369]
[1642059326681,3.14554186,3340.8,3340.7,0.00227369]
[1642059326882,3.13528592,3340.9,3340.7,0.00227369]
[1642059327081,3.13528592,3340.9,3340.5,1.0]
[1642059327279,0.74829,3340.7,3340.4,8.8966]
[1642059327480,0.74829,3340.7,3340.3,0.1197]
[1642059327688,0.74829,3340.7,3340.5,0.00113685]
[1642059327689,1.88396966,3340.6,3340.5,0.00113685]
[1642059328086,1.88396966,3340.6,3339.8,0.426]
[1642059328486,0.74834,3340.5,3340.2,0.00170527]
[1642059328687,1.27344627,3340.4,3340.2,0.00170527]
[1642059328885,0.3,3340.3,3340.2,0.00170527]
[1642059334297,1.84351824,3340.3,3340.2,0.00170527]
[1642059336003,1.84351824,3340.3,3340.2,30.00170527]
[1642059336200,1.84351824,3340.3,3340.2,31.00170527]
[1642059336630,0.3,3340.3,3340.2,31.00170527]
[1642059336829,0.3,3340.3,3340.2,31.42770527]
[1642059338830,3.3,3340.3,3340.2,31.42770527]
[1642059345755,4.45050363,3340.3,3340.2,31.42770527]
[1642059350800,0.1197,3340.8,3340.6,2.24466]
[1642059350995,0.1197,3341.1,3340.8,0.3]
[1642059351193,0.12311054,3341.1,3340.9,0.02551452]
[1642059351396,0.00341054,3341.1,3340.9,0.02551452]
[1642059351649,0.00341054,3341.1,3340.8,0.3]
[1642059351650,0.1197,3341.0,3340.8,0.31486417]
[1642059351943,0.1197,3341.0,3340.9,0.74821]
[1642059352144,0.1197,3341.2,3340.9,0.74821]
[1642059352343,1.5556699,3341.2,3341.0,0.7481387]
[1642059352543,0.1197,3341.1,3341.0,1.0481387]
[1642059352743,0.1197,3341.1,3341.0,0.7481387]
[1642059353142,0.1197,3341.1,3340.9,0.74821]
[1642059353543,0.00284212,3341.0,3340.9,0.74821]
[1642059353945,0.00284212,3341.0,3340.9,1.04821]
[1642059355787,1.5556699,3341.2,3340.9,1.04821]
[1642059355986,1.6753699,3341.2,3340.9,1.79634]
[1642059356390,1.5556699,3341.2,3340.9,1.79634]
[1642059356690,1.5556699,3341.2,3341.0,0.7481205]
[1642059357187,1.5556699,3341.2,3340.9,1.04821]
[1642059357386,1.24187593,3341.1,3340.9,1.04821]
[1642059358591,1.5556699,3341.2,3340.9,1.04821]
[1642059359446,4.5556699,3341.2,3340.9,1.04821]
[1642059359648,5.7853347,3341.2,3340.9,1.04821]
[1642059362049,5.7853347,3341.2,3340.9,1.79639]
[1642059362892,5.7853347,3341.2,3341.0,0.7481152]
[1642059363093,5.7853347,3341.2,3341.0,0.6981152]
[1642059363292,0.1197,3341.8,3341.0,0.6981152]
[1642059363492,0.1197,3341.8,3341.3,0.74821]
[1642059363692,0.00397896,3341.7,3341.3,0.73783889]
[1642059363992,0.12311054,3341.6,3341.3,1.03783889]
[1642059364196,0.00341054,3341.6,3341.3,1.03783889]
[1642059364398,0.12254212,3341.5,3341.3,1.03783889]
[1642059364594,3.01559071,3341.5,3341.3,1.03783889]
[1642059364794,0.00227369,3341.4,3341.3,4.53783889]
[1642059365793,0.00227369,3341.4,3341.3,3.5]
[1642059366638,0.00227369,3341.4,3341.3,3.8]
[1642059367640,0.00227369,3341.4,3341.3,3.5]
[1642059368139,2.69321387,3341.4,3341.3,3.5]
[1642059368339,2.69321387,3341.4,3341.2,1.49641]
[1642059368741,0.00170527,3341.3,3341.2,1.49641]
[1642059368942,0.00170527,3341.3,3341.2,4.99641]
[1642059369149,0.00170527,3341.3,3341.2,3.5]
[1642059369346,3.42226419,3341.3,3341.2,3.5]
[1642059369650,0.00170527,3341.3,3341.2,3.5]
[1642059370046,5.66981375,3341.3,3341.2,3.5]
[1642059371194,5.66981375,3341.3,3340.9,1.49657]
[1642059371195,7.2061983,3341.3,3340.9,1.49657]
[1642059371391,7.2061983,3341.3,3340.9,4.99657]
[1642059371591,0.00113685,3341.2,3340.9,4.99657]
[1642059372394,4.10876158,3341.2,3340.9,4.99657]
[1642059372794,4.10876158,3341.2,3340.9,3.5]
[1642059373396,2.57237703,3341.2,3340.9,3.5]
[1642059374258,2.57124018,3341.1,3341.0,0.74833]
[1642059375363,3.00370906,3341.1,3341.0,0.74833]
[1642059375562,3.00370906,3341.1,3340.8,1.49657]
[1642059375761,3.00370906,3341.1,3340.8,5.29657]
[1642059375962,2.57237703,3341.2,3340.8,5.29657]
[1642059376162,2.9632371,3341.1,3340.8,5.29657]
[1642059376363,2.97609164,3341.1,3340.8,5.29657]
[1642059376562,2.57124018,3341.0,3340.8,5.29657]
[1642059377662,5.34100913,3341.0,3340.8,5.29657]
[1642059378097,2.89263864,3340.9,3340.8,5.29657]
[1642059378299,5.34100913,3341.0,3340.8,0.3]
[1642059378497,5.34100913,3341.0,3340.8,0.00113685]
[1642059378698,5.9864,3340.9,3340.8,0.00113685]
[1642059378899,5.9864,3340.9,3340.7,0.00170527]
[1642059379099,8.55764018,3340.9,3340.7,0.00170527]
[1642059380201,2.57124018,3340.8,3340.7,0.00170527]
[1642059380399,5.82497336,3340.8,3340.7,0.00170527]
[1642059387092,6.57349336,3340.8,3340.7,0.00170527]
[1642059390353,2.67098508,3340.5,3340.4,0.00341054]
[1642059390546,0.27098508,3340.5,3340.4,0.00341054]
[1642059391749,2.84222526,3340.5,3340.4,0.00341054]
[1642059391950,5.84361346,3340.5,3340.4,0.00341054]
[1642059392447,2.84222526,3340.5,3340.4,0.00341054]
[1642059392893,5.8351821,3340.5,3340.4,0.00341054]
[1642059393088,5.86427136,3340.5,3340.4,0.00341054]
[1642059393590,2.84222526,3340.5,3340.4,0.00341054]
[1642059394793,5.890573,3340.5,3340.4,0.00341054]
[1642059395595,5.890573,3340.5,3340.3,0.00397897]
[1642059395794,3.29827236,3340.4,3340.3,0.00397897]
[1642059395996,4.85033401,3340.4,3340.3,0.00397897]
[1642059396295,6.09998324,3340.4,3340.3,0.00397897]
[1642059396742,8.67122342,3340.4,3340.3,0.00397897]
[1642059397340,8.67122342,3340.4,3340.2,0.07379197]
[1642059397542,3.05424294,3340.3,3340.2,0.07379197]
[1642059398142,5.62548312,3340.3,3340.2,0.07379197]
[1642059400290,8.62548312,3340.3,3340.2,0.07379197]
[1642059401192,8.74518312,3340.3,3340.2,0.07379197]
[1642059402494,5.69094018,3340.3,3340.1,1.0143801]
[1642059402894,8.58310734,3340.3,3340.1,1.0143801]
[1642059403100,8.60272472,3340.3,3340.1,1.0143801]
[1642059403297,2.57124018,3340.2,3340.1,1.0143801]
[1642059403795,2.57124018,3340.2,3340.1,1.01551694]
[1642059407347,2.52124018,3340.2,3340.1,1.01551694]
[1642059409995,2.52124018,3340.2,3340.1,1.31551694]
[1642059410797,2.52124018,3340.2,3340.1,1.01551694]
[1642059414746,2.52124018,3340.2,3340.1,0.91551694]
[1642059421652,2.52124018,3340.2,3340.1,4.29376276]
[1642059421850,2.52124018,3340.2,3340.1,1.51551694]
[1642059422250,1.08690183,3340.4,3340.1,1.63521694]
[1642059422451,1.08690183,3340.4,3340.2,0.1197]
[1642059422651,1.08690183,3340.4,3340.2,1.6163449]
[1642059422896,1.08690183,3340.4,3340.3,0.6]
[1642059424103,1.08690183,3340.4,3340.3,0.3]
[1642059424299,1.08690183,3340.4,3340.3,0.6]
[1642059424700,1.08690183,3340.4,3340.3,0.3]
[1642059424900,1.08690183,3340.4,3340.3,0.6]
[1642059425301,1.08690183,3340.4,3340.3,0.3]
[1642059425502,1.08690183,3340.4,3340.3,0.6]
[1642059425904,1.08690183,3340.4,3340.3,0.3]
[1642059426103,1.08690183,3340.4,3340.3,0.6]
[1642059427441,1.08690183,3340.4,3340.3,0.3]
[1642059427642,1.08690183,3340.4,3340.3,0.6]
[1642059428441,1.08690183,3340.4,3340.3,0.3]
[1642059428641,1.08690183,3340.4,3340.3,0.6]
[1642059429446,4.08690183,3340.4,3340.3,0.3]
[1642059429647,4.08690183,3340.4,3340.3,0.6]
[1642059430048,4.08690183,3340.4,3340.3,0.3]
[1642059430298,1.08690183,3340.4,3340.3,0.6]
[1642059430497,1.08690183,3340.4,3340.3,0.3]
[1642059430697,1.08690183,3340.4,3340.3,0.6]
[1642059431098,1.08690183,3340.4,3340.3,0.3]
[1642059431300,1.08690183,3340.4,3340.3,0.6]
[1642059431906,1.08690183,3340.4,3340.3,0.3]
[1642059432103,1.08690183,3340.4,3340.3,0.6]
[1642059432806,1.08690183,3340.4,3340.3,0.3]
[1642059433008,1.08690183,3340.4,3340.3,0.6]
[1642059434452,1.08690183,3340.4,3340.3,0.3]
[1642059435052,1.20660183,3340.4,3340.1,0.9143801]
[1642059435749,1.20660183,3340.4,3340.2,0.119812]
[1642059436150,1.20660183,3340.4,3340.2,0.868302]
[1642059436954,1.08690183,3340.4,3340.2,0.868302]
[1642059440301,3.08690183,3340.4,3340.2,0.868302]
[1642059441102,4.29985741,3340.4,3340.2,0.868302]
[1642059441941,4.29985741,3340.4,3340.2,1.168302]
[1642059442944,4.29985741,3340.4,3340.2,0.868302]
[1642059443143,2.57172308,3340.3,3340.2,0.868302]
[1642059443846,2.57172308,3340.3,3340.2,1.168302]
[1642059444951,2.57172308,3340.3,3340.2,0.868302]
[1642059448602,2.57172308,3340.3,3340.2,4.668302]
[1642059450252,2.57172308,3340.3,3340.2,3.919812]
[1642059450654,2.57172308,3340.3,3340.2,0.119812]
[1642059450851,6.66345488,3340.3,3340.2,0.119812]
[1642059451150,3.57172308,3340.3,3340.2,0.119812]
[1642059451755,5.10810763,3340.3,3340.2,0.119812]
[1642059451951,11.09450763,3340.3,3340.2,0.119812]
[1642059453200,14.02282206,3340.3,3340.2,0.119812]
[1642059454007,12.48643751,3340.3,3340.2,0.119812]
[1642059454911,9.55812308,3340.3,3340.2,0.119812]
[1642059455309,12.45650287,3340.3,3340.2,0.119812]
[1642059457352,12.57620287,3340.3,3340.2,0.119812]
[1642059457954,12.57620287,3340.3,3340.2,0.069812]
[1642059458352,12.45650287,3340.3,3340.2,0.069812]
[1642059458552,9.55812308,3340.3,3340.2,0.069812]
[1642059458953,12.49003791,3340.3,3340.2,0.069812]
[1642059459559,9.55812308,3340.3,3340.1,0.9143801]
[1642059460398,12.41735435,3340.3,3340.1,0.9143801]
[1642059460697,2.87546334,3340.2,3340.1,0.9143801]
[1642059460899,11.43358642,3340.2,3340.1,0.9143801]
[1642059461100,8.55812308,3340.2,3340.1,0.9143801]
[1642059463104,11.62612669,3340.2,3340.1,0.9143801]
[1642059466552,12.74582669,3340.2,3340.1,0.9143801]
[1642059466947,5.0,3340.1,3340.0,0.119835]
[1642059467148,15.72890269,3340.1,3340.0,0.119835]
[1642059467347,15.72890269,3340.1,3340.0,0.12154027]
[1642059468396,18.30062577,3340.1,3340.0,0.12154027]
[1642059471572,13.30062577,3340.1,3340.0,0.12154027]
[1642059472561,9.67782308,3340.1,3340.0,0.12154027]
[1642059472762,8.67782308,3340.1,3340.0,0.12154027]
[1642059472966,8.55812308,3340.1,3340.0,0.12154027]
[1642059473762,8.55812308,3340.1,3340.0,0.00170527]
[1642059474165,8.55812308,3340.1,3339.8,0.00284211]
[1642059475410,2.57172308,3340.0,3339.8,0.00284211]
[1642059475613,5.9864,3339.9,3339.8,0.00284211]
[1642059477011,8.55812308,3339.9,3339.8,0.00284211]
[1642059481851,8.55812308,3339.9,3339.7,0.00341054]
[1642059482651,1.25737036,3339.8,3339.7,0.00341054]
[1642059482896,10.96471153,3339.8,3339.7,0.00341054]
[1642059485205,9.81549344,3339.8,3339.7,0.00341054]
[1642059487650,9.81549344,3339.8,3339.7,0.30341054]
[1642059489459,9.81549344,3339.8,3339.7,1.05197984]
[1642059490917,9.81549344,3339.8,3339.7,0.30341054]
[1642059493320,9.81549344,3339.8,3339.7,1.05201494]
[1642059495254,9.85574394,3339.8,3339.7,1.05201494]
[1642059495451,9.85574394,3339.8,3339.7,0.30341054]
[1642059502656,9.82894394,3339.8,3339.7,0.30341054]
[1642059502958,1.53638455,3340.2,3339.8,0.74836]
[1642059503161,0.22988455,3340.2,3339.9,4.61113664]
[1642059503363,4.30457683,3340.4,3340.0,0.3]
[1642059503559,4.30457683,3340.4,3340.0,2.04826]
[1642059503762,3.52784317,3340.4,3340.1,0.00113684]
[1642059503964,3.52784317,3340.4,3340.2,0.1197]
[1642059504360,3.52784317,3340.4,3340.2,1.6165299]
[1642059504562,3.52784317,3340.4,3340.3,0.6]
[1642059505298,2.0,3340.4,3340.3,0.6]
[1642059508710,1.52135171,3340.4,3340.3,0.6]
[1642059510258,1.53736426,3340.4,3340.3,0.6]
[1642059510861,1.53736426,3340.4,3340.3,0.3]
[1642059511967,1.53736426,3340.4,3340.1,0.86914684]
[1642059512160,1.65706426,3340.4,3340.1,0.86914684]
[1642059512360,1.65706426,3340.4,3340.1,0.12083684]
[1642059512560,0.13571255,3340.4,3340.1,0.24065484]
[1642059512807,1.52304081,3340.3,3340.1,0.24065484]
[1642059513010,0.1197,3340.2,3340.1,0.12095484]
[1642059514515,0.1197,3340.2,3340.1,0.42095484]
[1642059515113,0.13569667,3340.2,3340.1,0.42095484]
[1642059515311,0.01599667,3340.2,3340.1,0.42095484]
[1642059518561,0.13569667,3340.2,3340.1,0.12095484]
[1642059520412,3.04540079,3340.2,3340.1,0.12095484]
[1642059520612,3.10167188,3340.2,3340.1,0.12095484]
[1642059522327,6.8,3339.9,3338.0,22.34538243]
[1642059522521,0.01257312,3338.3,3338.0,18.1519966]
[1642059522719,0.12809605,3338.2,3338.1,0.01136847]
[1642059522918,0.1198,3338.2,3338.1,0.01136847]
[1642059523316,1.66058169,3338.2,3338.1,0.01136847]
[1642059523517,2.83565169,3338.2,3338.1,0.01136847]
[1642059523920,8.70715169,3338.2,3338.1,0.01136847]
[1642059524160,9.82695169,3338.2,3338.1,0.01136847]
[1642059524360,9.62695169,3338.2,3338.1,0.01136847]
[1642059524760,15.32626435,3338.2,3338.1,0.01136847]
[1642059524969,15.34210214,3338.2,3338.1,0.01136847]
[1642059526562,15.6931105,3338.2,3338.1,0.01136847]
[1642059526764,12.56639583,3338.2,3338.1,0.01136847]
[1642059527667,12.44659583,3338.2,3338.1,0.01136847]
[1642059530325,9.92051747,3338.2,3338.1,0.01136847]
[1642059530519,8.57973578,3338.2,3338.1,0.13116847]
[1642059531571,8.57973578,3338.2,3338.1,0.01136847]
[1642059531762,7.34203101,3338.2,3338.1,0.01136847]
[1642059532160,8.84203101,3338.2,3338.1,0.01136847]
[1642059532562,8.84203101,3338.2,3338.1,0.13116847]
[1642059533564,8.84203101,3338.2,3338.1,0.01136847]
[1642059534770,7.50713779,3338.2,3338.1,0.01136847]
[1642059535171,7.50713779,3338.2,3338.1,0.13116847]
[1642059538011,7.50713779,3338.2,3338.1,0.01136847]
[1642059539765,7.50713779,3338.2,3338.1,3.17228312]
[1642059539965,7.50713779,3338.2,3338.1,4.18116847]
[1642059540163,7.50713779,3338.2,3338.1,5.18116847]
[1642059540969,7.50713779,3338.2,3338.1,7.88116847]
[1642059541166,7.50713779,3338.2,3338.1,5.18116847]
[1642059542465,1.51825779,3338.2,3338.1,5.18116847]
[1642059544712,1.51825779,3338.2,3338.1,1.13116847]
[1642059548359,1.51825779,3338.2,3338.1,1.01136847]
[1642059548756,1.51825779,3338.2,3338.1,0.01136847]
[1642059552707,1.63805779,3338.2,3338.0,15.9019966]
[1642059553310,1.18024848,3338.1,3338.0,15.9019966]
[1642059553508,1.30004848,3338.1,3338.0,15.9019966]
[1642059553714,1.30004848,3338.1,3338.0,15.91393349]
[1642059554166,1.30004848,3338.1,3338.0,16.21393349]
[1642059555068,1.31587832,3338.1,3338.0,16.21393349]
[1642059555664,0.13562984,3338.1,3338.0,16.21393349]
[1642059557267,0.01582984,3338.1,3338.0,16.21393349]
[1642059559413,0.13562984,3338.1,3338.0,16.21393349]
[1642059559815,3.08916149,3338.1,3338.0,16.21393349]
[1642059560016,3.09158149,3338.1,3338.0,16.21393349]
[1642059560816,2.43804984,3338.1,3338.0,16.21393349]
[1642059561016,2.43804984,3338.1,3338.0,15.91393349]
[1642059561216,5.01186893,3338.1,3338.0,15.91393349]
[1642059562255,0.13804984,3338.1,3338.0,15.91393349]
[1642059563155,2.71180139,3338.1,3338.0,15.91393349]
[1642059564162,5.67223135,3338.1,3338.0,15.91393349]
[1642059566208,6.67223135,3338.1,3338.0,15.91393349]
[1642059566410,6.55243135,3338.1,3338.0,15.91393349]
[1642059567609,6.97843135,3338.1,3338.0,15.91393349]